[Event "MČR juniorů a juniorek v rapid šachu 2024"]
[Site "Hotel Fit Fun, Harrachov, Czech Republic"]
[Date "2024.09.21"]
[Round "1.14"]
[White "Budil Vaclav"]
[Black "Hozda Max"]
[Result "0-1"]
[TimeControl "20+5"]
[WhiteFideId "23776226"]
[BlackFideId "23725958"]
[WhiteElo "1697"]
[BlackElo "1939"]

1. e4 {[%clk 00:20:08]} {[%emt 00:00:02]} Nf6 {[%clk 00:20:05]} {[%emt
00:00:05]} 2. Nc3 {[%clk 00:20:11]} {[%emt 00:00:02]} d5 {[%clk 00:20:09]}
{[%emt 00:00:02]} 3. e5 {[%clk 00:20:15]} Nfd7 {[%clk 00:20:13]} 4. d4 {[%clk
00:20:16]} {[%emt 00:00:04]} c5 {[%clk 00:20:14]} {[%emt 00:00:04]} 5. Nxd5
{[%clk 00:19:57]} {[%emt 00:00:23]} cxd4 {[%clk 00:20:03]} {[%emt 00:00:17]} 6.
Nf3 {[%clk 00:17:09]} {[%emt 00:02:54]} Qa5+ {[%clk 00:19:54]} {[%emt
00:00:13]} 7. c3 {[%clk 00:17:02]} {[%emt 00:00:13]} Qxd5 {[%clk 00:19:56]}
{[%emt 00:00:02]} 8. cxd4 {[%clk 00:17:05]} {[%emt 00:00:02]} Nc6 {[%clk
00:19:45]} {[%emt 00:00:15]} 9. Be3 {[%clk 00:17:00]} {[%emt 00:00:11]} e6
{[%clk 00:19:40]} {[%emt 00:00:10]} 10. Qc2 {[%clk 00:17:00]} {[%emt 00:00:04]}
Bb4+ {[%clk 00:19:38]} {[%emt 00:00:08]} 0-1



[ePGN "0.1;DGT LiveChess/2.2.6"]

[Event "MČR juniorů a juniorek v rapid šachu 2024"]
[Site "Hotel Fit Fun, Harrachov, Czech Republic"]
[Date "2024.09.21"]
[Round "1.15"]
[White "Rybackova Lucie"]
[Black "Pes Matej"]
[Result "1-0"]
[TimeControl "20+5"]
[WhiteFideId "23739207"]
[BlackFideId "23766816"]
[WhiteElo "1933"]
[BlackElo "1697"]

1. d4 {[%clk 00:20:08]} {[%emt 00:00:01]} Nf6 {[%clk 00:20:06]} {[%emt
00:00:04]} 2. Nf3 {[%clk 00:20:11]} {[%emt 00:00:02]} g6 {[%clk 00:20:02]}
{[%emt 00:00:09]} 3. g3 {[%clk 00:20:14]} {[%emt 00:00:02]} Bg7 {[%clk
00:20:05]} {[%emt 00:00:03]} 4. Bg2 {[%clk 00:20:17]} {[%emt 00:00:02]} O-O
{[%clk 00:20:06]} {[%emt 00:00:04]} 5. O-O {[%clk 00:20:18]} {[%emt 00:00:04]}
d6 {[%clk 00:19:49]} {[%emt 00:00:22]} 6. b3 {[%clk 00:20:13]} {[%emt
00:00:10]} c5 {[%clk 00:19:47]} {[%emt 00:00:07]} 7. Bb2 {[%clk 00:20:13]}
{[%emt 00:00:06]} Qc7 {[%clk 00:18:58]} {[%emt 00:00:53]} 8. c4 {[%clk
00:20:02]} {[%emt 00:00:15]} Nbd7 {[%clk 00:18:35]} {[%emt 00:00:29]} 9. Nc3
{[%clk 00:19:53]} {[%emt 00:00:14]} a6 {[%clk 00:18:30]} {[%emt 00:00:10]} 10.
Rc1 {[%clk 00:17:13]} {[%emt 00:02:45]} cxd4 {[%clk 00:15:14]} {[%emt
00:03:21]} 11. Nxd4 {[%clk 00:17:14]} {[%emt 00:00:04]} e5 {[%clk 00:15:09]}
{[%emt 00:00:10]} 12. Nc2 {[%clk 00:16:12]} {[%emt 00:01:07]} Nb6 {[%clk
00:14:16]} {[%emt 00:00:59]} 13. Ne3 {[%clk 00:15:56]} {[%emt 00:00:20]} Be6
{[%clk 00:13:47]} {[%emt 00:00:34]} 14. Ba3 {[%clk 00:12:32]} {[%emt 00:03:29]}
Rfd8 {[%clk 00:13:27]} {[%emt 00:00:25]} 15. Ncd5 {[%clk 00:12:32]} {[%emt
00:00:05]} Bxd5 {[%clk 00:12:55]} {[%emt 00:00:37]} 16. cxd5 {[%clk 00:12:05]}
{[%emt 00:00:32]} Qe7 {[%clk 00:11:44]} {[%emt 00:01:17]} 17. Qd2 {[%clk
00:10:43]} {[%emt 00:01:26]} Rac8 {[%clk 00:10:04]} {[%emt 00:01:44]} 18. Qb4
{[%clk 00:09:18]} {[%emt 00:01:30]} Rxc1 {[%clk 00:08:28]} {[%emt 00:01:42]} 19.
Rxc1 {[%clk 00:09:20]} {[%emt 00:00:02]} Nc8 {[%clk 00:08:32]} {[%emt
00:00:02]} 20. Nc4 {[%clk 00:07:56]} {[%emt 00:01:29]} Ng4 {[%clk 00:04:59]}
{[%emt 00:03:38]} 21. f3 {[%clk 00:06:21]} {[%emt 00:01:40]} Qg5 {[%clk
00:04:48]} {[%emt 00:00:16]} 22. fxg4 {[%clk 00:06:13]} {[%emt 00:00:12]} 1-0



[ePGN "0.1;DGT LiveChess/2.2.6"]

[Event "MČR juniorů a juniorek v rapid šachu 2024"]
[Site "Hotel Fit Fun, Harrachov, Czech Republic"]
[Date "2024.09.21"]
[Round "1.16"]
[White "Housa Vojtech"]
[Black "Garabik Marek"]
[Result "1-0"]
[TimeControl "20+5"]
[WhiteFideId "23736364"]
[BlackFideId "23717742"]
[WhiteElo "1691"]
[BlackElo "1933"]

1. e4 {[%clk 00:20:08]} {[%emt 00:00:02]} e6 {[%clk 00:20:09]} {[%emt
00:00:01]} 2. d4 {[%clk 00:20:10]} {[%emt 00:00:02]} d5 {[%clk 00:20:13]} 3.
exd5 {[%clk 00:20:14]} {[%emt 00:00:02]} exd5 {[%clk 00:20:17]} 4. Bd3 {[%clk
00:20:18]} Nc6 {[%clk 00:20:21]} 5. c3 {[%clk 00:20:19]} {[%emt 00:00:04]} Bd6
{[%clk 00:20:23]} {[%emt 00:00:03]} 6. Nf3 {[%clk 00:20:22]} {[%emt 00:00:02]}
Nge7 {[%clk 00:20:27]} {[%emt 00:00:02]} 7. O-O {[%clk 00:20:08]} {[%emt
00:00:17]} Bg4 {[%clk 00:20:29]} {[%emt 00:00:04]} 8. h3 {[%clk 00:19:41]}
{[%emt 00:00:31]} Bh5 {[%clk 00:20:32]} {[%emt 00:00:03]} 9. Re1 {[%clk
00:19:15]} {[%emt 00:00:30]} Qd7 {[%clk 00:20:06]} {[%emt 00:00:32]} 10. Nbd2
{[%clk 00:18:30]} {[%emt 00:00:50]} f6 {[%clk 00:19:55]} {[%emt 00:00:17]} 11.
Nf1 {[%clk 00:18:13]} {[%emt 00:00:21]} O-O-O {[%clk 00:19:11]} {[%emt
00:00:49]} 12. Ng3 {[%clk 00:17:27]} {[%emt 00:00:50]} Bg6 {[%clk 00:18:35]}
{[%emt 00:00:42]} 13. b4 {[%clk 00:16:24]} {[%emt 00:01:08]} Bxd3 {[%clk
00:18:03]} {[%emt 00:00:37]} 14. Qxd3 {[%clk 00:16:24]} {[%emt 00:00:04]} g5
{[%clk 00:17:41]} {[%emt 00:00:28]} 15. a4 {[%clk 00:15:06]} {[%emt 00:01:23]}
h5 {[%clk 00:17:42]} {[%emt 00:00:04]} 16. Ba3 {[%clk 00:13:52]} {[%emt
00:01:19]} g4 {[%clk 00:17:23]} {[%emt 00:00:24]} 17. b5 {[%clk 00:11:20]}
{[%emt 00:02:37]} Na5 {[%clk 00:09:05]} {[%emt 00:08:23]} 18. Bxd6 {[%clk
00:10:04]} {[%emt 00:01:21]} Qxd6 {[%clk 00:09:05]} {[%emt 00:00:05]} 19. Nf5
{[%clk 00:09:54]} {[%emt 00:00:15]} Nxf5 {[%clk 00:08:42]} {[%emt 00:00:28]} 20.
Qxf5+ {[%clk 00:09:57]} {[%emt 00:00:02]} Qd7 {[%clk 00:08:46]} {[%emt
00:00:02]} 21. Nh4 {[%clk 00:09:09]} {[%emt 00:00:52]} Rhg8 {[%clk 00:01:34]}
{[%emt 00:07:17]} 22. hxg4 {[%clk 00:08:32]} {[%emt 00:00:42]} hxg4 {[%clk
00:00:46]} {[%emt 00:00:52]} 23. Qxd7+ {[%clk 00:08:14]} {[%emt 00:00:24]} Rxd7
{[%clk 00:00:50]} {[%emt 00:00:01]} 24. Nf5 {[%clk 00:08:18]} Rh8 {[%clk
00:00:46]} {[%emt 00:00:09]} 25. Re7 {[%clk 00:07:36]} {[%emt 00:00:47]} Kd8
{[%clk 00:00:24]} {[%emt 00:00:27]} 26. Rxd7+ {[%clk 00:06:48]} {[%emt
00:00:53]} Kxd7 {[%clk 00:00:28]} 27. Re1 {[%clk 00:06:26]} {[%emt 00:00:25]}
Rh7 {[%clk 00:00:28]} {[%emt 00:00:07]} 28. Ne3 {[%clk 00:05:50]} {[%emt
00:00:41]} c6 {[%clk 00:00:19]} {[%emt 00:00:14]} 29. Nxg4 {[%clk 00:05:45]}
{[%emt 00:00:11]} Rf7 {[%clk 00:00:14]} {[%emt 00:00:10]} 30. Rb1 {[%clk
00:04:26]} {[%emt 00:01:23]} Kc7 {[%clk 00:00:10]} {[%emt 00:00:09]} 31. Nh6
{[%clk 00:04:10]} {[%emt 00:00:21]} Rf8 {[%clk 00:00:13]} {[%emt 00:00:02]} 32.
Nf5 {[%clk 00:04:14]} {[%emt 00:00:01]} Nc4 {[%clk 00:00:13]} {[%emt 00:00:05]}
33. bxc6 {[%clk 00:03:43]} {[%emt 00:00:36]} bxc6 {[%clk 00:00:12]} {[%emt
00:00:06]} 34. Re1 {[%clk 00:03:39]} {[%emt 00:00:09]} a5 {[%clk 00:00:13]}
{[%emt 00:00:05]} 35. Re7+ {[%clk 00:03:32]} {[%emt 00:00:11]} Kb6 {[%clk
00:00:13]} {[%emt 00:00:06]} 36. Ng7 {[%clk 00:03:00]} {[%emt 00:00:37]} Nb2
{[%clk 00:00:10]} {[%emt 00:00:08]} 37. Ne6 {[%clk 00:03:03]} {[%emt 00:00:02]}
Rh8 {[%clk 00:00:12]} {[%emt 00:00:02]} 38. Nc5 {[%clk 00:03:06]} {[%emt
00:00:02]} Rf8 {[%clk 00:00:13]} {[%emt 00:00:04]} 39. Rb7# {[%clk 00:03:09]}
{[%emt 00:00:02]} 1-0



[ePGN "0.1;DGT LiveChess/2.2.6"]

[Event "MČR juniorů a juniorek v rapid šachu 2024"]
[Site "Hotel Fit Fun, Harrachov, Czech Republic"]
[Date "2024.09.21"]
[Round "1.17"]
[White "Sichrovsky Tomas"]
[Black "Marxova Sarka"]
[Result "1-0"]
[TimeControl "20+5"]
[WhiteFideId "23704730"]
[BlackFideId "23701862"]
[WhiteElo "1928"]
[BlackElo "1684"]

1. d4 {[%clk 00:20:08]} {[%emt 00:00:02]} d5 {[%clk 00:20:08]} {[%emt
00:00:03]} 2. c4 {[%clk 00:20:12]} e6 {[%clk 00:20:11]} {[%emt 00:00:02]} 3.
Nc3 {[%clk 00:20:16]} Nf6 {[%clk 00:20:12]} {[%emt 00:00:04]} 4. cxd5 {[%clk
00:20:20]} {[%emt 00:00:01]} exd5 {[%clk 00:20:13]} {[%emt 00:00:04]} 5. Bg5
{[%clk 00:20:24]} {[%emt 00:00:01]} Be7 {[%clk 00:20:12]} {[%emt 00:00:06]} 6.
e3 {[%clk 00:20:28]} c6 {[%clk 00:20:07]} {[%emt 00:00:10]} 7. Bd3 {[%clk
00:20:32]} {[%emt 00:00:01]} Be6 {[%clk 00:19:57]} {[%emt 00:00:15]} 8. Nge2
{[%clk 00:20:33]} {[%emt 00:00:04]} O-O {[%clk 00:19:48]} {[%emt 00:00:14]} 9.
O-O {[%clk 00:20:29]} {[%emt 00:00:09]} Nbd7 {[%clk 00:19:11]} {[%emt
00:00:42]} 10. Qc2 {[%clk 00:20:28]} {[%emt 00:00:07]} h6 {[%clk 00:18:52]}
{[%emt 00:00:23]} 11. Bh4 {[%clk 00:20:31]} Ng4 {[%clk 00:18:24]} {[%emt
00:00:34]} 12. Bg3 {[%clk 00:20:24]} {[%emt 00:00:13]} Nb6 {[%clk 00:18:02]}
{[%emt 00:00:26]} 13. Rae1 {[%clk 00:19:57]} {[%emt 00:00:32]} Bd6 {[%clk
00:17:51]} {[%emt 00:00:16]} 14. h3 {[%clk 00:19:33]} {[%emt 00:00:29]} Bxg3
{[%clk 00:17:48]} {[%emt 00:00:08]} 15. Nxg3 {[%clk 00:19:36]} {[%emt
00:00:02]} Nf6 {[%clk 00:17:40]} {[%emt 00:00:12]} 16. f3 {[%clk 00:19:14]} Qd6
{[%clk 00:16:51]} {[%emt 00:01:21]} 17. Nge2 {[%clk 00:18:44]} Rfe8 {[%clk
00:16:11]} {[%emt 00:01:21]} 18. e4 {[%clk 00:18:35]} {[%emt 00:00:14]} dxe4
{[%clk 00:15:36]} {[%emt 00:00:40]} 19. fxe4 {[%clk 00:18:39]} {[%emt
00:00:01]} Qc7 {[%clk 00:15:09]} {[%emt 00:00:32]} 20. Nf4 {[%clk 00:15:16]}
{[%emt 00:03:28]} Rad8 {[%clk 00:13:43]} {[%emt 00:01:31]} 21. e5 {[%clk
00:14:45]} {[%emt 00:00:37]} Nfd5 {[%clk 00:13:30]} {[%emt 00:00:17]} 22. Nxe6
{[%clk 00:13:17]} {[%emt 00:01:33]} Rxe6 {[%clk 00:13:07]} {[%emt 00:00:29]} 23.
Bf5 {[%clk 00:12:17]} {[%emt 00:01:04]} Ree8 {[%clk 00:12:50]} {[%emt
00:00:22]} 24. e6 {[%clk 00:11:58]} {[%emt 00:00:24]} fxe6 {[%clk 00:09:00]}
{[%emt 00:03:56]} 25. Bxe6+ {[%clk 00:11:10]} {[%emt 00:00:52]} Kh8 {[%clk
00:08:56]} {[%emt 00:00:08]} 26. Nxd5 {[%clk 00:11:13]} {[%emt 00:00:02]} Nxd5
{[%clk 00:08:51]} {[%emt 00:00:10]} 27. Bxd5 {[%clk 00:11:13]} {[%emt
00:00:05]} Qa5 {[%clk 00:07:08]} {[%emt 00:01:48]} 28. Rxe8+ {[%clk 00:10:29]}
{[%emt 00:00:50]} Rxe8 {[%clk 00:07:09]} {[%emt 00:00:03]} 29. Bf3 {[%clk
00:09:07]} {[%emt 00:01:27]} Qxa2 {[%clk 00:06:24]} {[%emt 00:00:51]} 30. Qf5
{[%clk 00:08:08]} {[%emt 00:01:02]} Qxb2 {[%clk 00:05:34]} {[%emt 00:00:56]} 31.
d5 {[%clk 00:08:00]} {[%emt 00:00:14]} Qd4+ {[%clk 00:04:32]} {[%emt 00:01:06]}
32. Kh1 {[%clk 00:07:58]} {[%emt 00:00:07]} cxd5 {[%clk 00:04:17]} {[%emt
00:00:20]} 33. Bxd5 {[%clk 00:07:04]} {[%emt 00:01:00]} b6 {[%clk 00:02:20]}
{[%emt 00:02:02]} 34. Bc6 {[%clk 00:06:17]} {[%emt 00:00:51]} Re5 {[%clk
00:01:58]} {[%emt 00:00:28]} 35. Qf8+ {[%clk 00:05:41]} {[%emt 00:00:40]} Kh7
{[%clk 00:01:59]} {[%emt 00:00:05]} 36. Be8 {[%clk 00:05:23]} {[%emt 00:00:23]}
Qd3 {[%clk 00:01:01]} {[%emt 00:01:02]} 37. Ba4 {[%clk 00:03:34]} {[%emt
00:01:55]} Qd5 {[%clk 00:00:37]} {[%emt 00:00:29]} 38. Bc2+ {[%clk 00:03:25]}
{[%emt 00:00:13]} Re4 {[%clk 00:00:17]} {[%emt 00:00:25]} 39. Bxe4+ {[%clk
00:03:29]} {[%emt 00:00:02]} Qxe4 {[%clk 00:00:21]} {[%emt 00:00:01]} 40. Qf5+
{[%clk 00:03:30]} {[%emt 00:00:04]} Qxf5 {[%clk 00:00:22]} {[%emt 00:00:04]} 41.
Rxf5 {[%clk 00:03:34]} Kg6 {[%clk 00:00:24]} {[%emt 00:00:03]} 42. g4 {[%clk
00:03:38]} a5 {[%clk 00:00:28]} {[%emt 00:00:01]} 43. Rb5 {[%clk 00:03:42]} a4
{[%clk 00:00:31]} {[%emt 00:00:02]} 44. Rxb6+ {[%clk 00:03:45]} {[%emt
00:00:02]} Kf7 {[%clk 00:00:34]} 45. Ra6 {[%clk 00:03:50]} {[%emt 00:00:01]}
1-0



[ePGN "0.1;DGT LiveChess/2.2.6"]

[Event "MČR juniorů a juniorek v rapid šachu 2024"]
[Site "Hotel Fit Fun, Harrachov, Czech Republic"]
[Date "2024.09.21"]
[Round "1.18"]
[White "Jun Robert"]
[Black "Stejskal Michal"]
[Result "1-0"]
[TimeControl "20+5"]
[WhiteFideId "23709510"]
[BlackFideId "398195"]
[WhiteElo "1681"]
[BlackElo "1926"]

1. e4 {[%clk 00:20:07]} {[%emt 00:00:02]} e6 {[%clk 00:20:07]} {[%emt
00:00:03]} 2. d4 {[%clk 00:20:11]} {[%emt 00:00:02]} d5 {[%clk 00:20:11]}
{[%emt 00:00:01]} 3. exd5 {[%clk 00:20:05]} {[%emt 00:00:10]} exd5 {[%clk
00:20:14]} {[%emt 00:00:02]} 4. c4 {[%clk 00:20:09]} c6 {[%clk 00:20:17]}
{[%emt 00:00:01]} 5. Nc3 {[%clk 00:20:13]} {[%emt 00:00:01]} Nf6 {[%clk
00:20:19]} {[%emt 00:00:03]} 6. Nf3 {[%clk 00:19:40]} {[%emt 00:00:38]} Be7
{[%clk 00:19:58]} {[%emt 00:00:27]} 7. cxd5 {[%clk 00:19:22]} {[%emt 00:00:23]}
Nxd5 {[%clk 00:19:51]} {[%emt 00:00:11]} 8. Bc4 {[%clk 00:18:58]} {[%emt
00:00:29]} O-O {[%clk 00:19:25]} {[%emt 00:00:30]} 9. O-O {[%clk 00:18:46]}
{[%emt 00:00:19]} Nxc3 {[%clk 00:17:58]} {[%emt 00:01:31]} 10. bxc3 {[%clk
00:18:48]} {[%emt 00:00:02]} Bf6 {[%clk 00:17:58]} {[%emt 00:00:05]} 11. Re1
{[%clk 00:18:10]} {[%emt 00:00:44]} c5 {[%clk 00:17:13]} {[%emt 00:00:51]} 12.
Ba3 {[%clk 00:17:33]} {[%emt 00:00:41]} Nd7 {[%clk 00:15:34]} {[%emt 00:01:44]}
13. Qb3 {[%clk 00:17:30]} {[%emt 00:00:08]} a6 {[%clk 00:14:36]} {[%emt
00:01:03]} 14. dxc5 {[%clk 00:16:47]} {[%emt 00:00:48]} Qc7 {[%clk 00:11:40]}
{[%emt 00:03:02]} 15. c6 {[%clk 00:16:03]} {[%emt 00:00:48]} bxc6 {[%clk
00:11:43]} {[%emt 00:00:02]} 16. Bxf7+ {[%clk 00:15:23]} {[%emt 00:00:45]} Kh8
{[%clk 00:11:19]} {[%emt 00:00:29]} 17. Bxf8 {[%clk 00:15:21]} {[%emt
00:00:07]} Nxf8 {[%clk 00:11:22]} {[%emt 00:00:02]} 18. Re8 {[%clk 00:14:17]}
{[%emt 00:01:08]} Bb7 {[%clk 00:10:58]} {[%emt 00:00:29]} 19. Rae1 {[%clk
00:13:51]} {[%emt 00:00:31]} Rxe8 {[%clk 00:10:13]} {[%emt 00:00:51]} 20. Rxe8
{[%clk 00:13:25]} {[%emt 00:00:31]} Be7 {[%clk 00:09:50]} {[%emt 00:00:27]} 21.
Qe6 {[%clk 00:12:23]} {[%emt 00:01:08]} Bd6 {[%clk 00:08:46]} {[%emt 00:01:09]}
22. Ne5 {[%clk 00:12:12]} {[%emt 00:00:15]} Qb6 {[%clk 00:07:18]} {[%emt
00:01:34]} 23. Ng6+ {[%clk 00:12:07]} {[%emt 00:00:10]} 1-0



[ePGN "0.1;DGT LiveChess/2.2.6"]

[Event "MČR juniorů a juniorek v rapid šachu 2024"]
[Site "Hotel Fit Fun, Harrachov, Czech Republic"]
[Date "2024.09.21"]
[Round "1.19"]
[White "Bartak Josef"]
[Black "Vyslysel Petr"]
[Result "1-0"]
[TimeControl "20+5"]
[WhiteFideId "23712252"]
[BlackFideId "23730277"]
[WhiteElo "1902"]
[BlackElo "1678"]

1. e4 {[%clk 00:20:08]} {[%emt 00:00:01]} e5 {[%clk 00:20:09]} {[%emt
00:00:01]} 2. Nf3 {[%clk 00:20:12]} {[%emt 00:00:02]} Nf6 {[%clk 00:20:13]} 3.
Nc3 {[%clk 00:20:14]} {[%emt 00:00:02]} Nc6 {[%clk 00:20:17]} {[%emt 00:00:02]}
4. d4 {[%clk 00:20:18]} exd4 {[%clk 00:20:20]} {[%emt 00:00:02]} 5. Nxd4 {[%clk
00:20:22]} {[%emt 00:00:01]} Bb4 {[%clk 00:20:23]} {[%emt 00:00:02]} 6. Nxc6
{[%clk 00:20:25]} {[%emt 00:00:02]} bxc6 {[%clk 00:20:27]} {[%emt 00:00:01]} 7.
Bd3 {[%clk 00:20:28]} {[%emt 00:00:01]} O-O {[%clk 00:20:19]} {[%emt 00:00:13]}
8. O-O {[%clk 00:20:27]} {[%emt 00:00:05]} d5 {[%clk 00:20:16]} {[%emt
00:00:08]} 9. exd5 {[%clk 00:20:23]} {[%emt 00:00:09]} Bg4 {[%clk 00:20:17]}
{[%emt 00:00:04]} 10. f3 {[%clk 00:20:14]} {[%emt 00:00:14]} Bh5 {[%clk
00:20:21]} {[%emt 00:00:02]} 11. Bg5 {[%clk 00:19:47]} {[%emt 00:00:31]} Bxc3
{[%clk 00:20:12]} {[%emt 00:00:14]} 12. bxc3 {[%clk 00:19:49]} {[%emt
00:00:03]} cxd5 {[%clk 00:20:15]} {[%emt 00:00:02]} 13. Qd2 {[%clk 00:19:19]}
{[%emt 00:00:35]} c6 {[%clk 00:20:15]} {[%emt 00:00:05]} 14. Rab1 {[%clk
00:19:10]} {[%emt 00:00:15]} Qd6 {[%clk 00:19:40]} {[%emt 00:00:40]} 15. Rb7
{[%clk 00:18:45]} {[%emt 00:00:30]} Qc5+ {[%clk 00:19:29]} {[%emt 00:00:15]} 16.
Be3 {[%clk 00:17:56]} {[%emt 00:00:54]} Qa5 {[%clk 00:19:32]} {[%emt 00:00:03]}
17. Bd4 {[%clk 00:17:44]} {[%emt 00:00:16]} Ne8 {[%clk 00:17:28]} {[%emt
00:02:09]} 18. Qe3 {[%clk 00:14:30]} {[%emt 00:03:18]} Nd6 {[%clk 00:15:56]}
{[%emt 00:01:38]} 19. Qe5 {[%clk 00:13:43]} {[%emt 00:00:52]} 1-0



[ePGN "0.1;DGT LiveChess/2.2.6"]

[Event "MČR juniorů a juniorek v rapid šachu 2024"]
[Site "Hotel Fit Fun, Harrachov, Czech Republic"]
[Date "2024.09.21"]
[Round "1.2"]
[White "Sulcova Tereza Radmila"]
[Black "Hak David"]
[Result "0-1"]
[TimeControl "20+5"]
[WhiteFideId "395196"]
[BlackFideId "377007"]
[WhiteElo "1800"]
[BlackElo "2103"]

1. e4 {[%clk 00:17:41]} {[%emt 00:02:28]} c5 {[%clk 00:20:09]} {[%emt
00:00:01]} 2. c4 {[%clk 00:17:44]} {[%emt 00:00:02]} Nc6 {[%clk 00:20:05]}
{[%emt 00:00:09]} 3. Nc3 {[%clk 00:17:39]} {[%emt 00:00:11]} g6 {[%clk
00:20:04]} {[%emt 00:00:06]} 4. g3 {[%clk 00:17:40]} {[%emt 00:00:04]} Bg7
{[%clk 00:20:06]} {[%emt 00:00:02]} 5. Bg2 {[%clk 00:17:43]} {[%emt 00:00:02]}
d6 {[%clk 00:20:00]} {[%emt 00:00:12]} 6. Nge2 {[%clk 00:17:43]} {[%emt
00:00:05]} e5 {[%clk 00:19:58]} {[%emt 00:00:07]} 7. O-O {[%clk 00:17:43]}
{[%emt 00:00:05]} Nge7 {[%clk 00:20:01]} {[%emt 00:00:01]} 8. d3 {[%clk
00:17:45]} {[%emt 00:00:04]} O-O {[%clk 00:20:04]} {[%emt 00:00:02]} 9. Rb1
{[%clk 00:17:32]} {[%emt 00:00:17]} Be6 {[%clk 00:19:06]} {[%emt 00:01:03]} 10.
Be3 {[%clk 00:17:01]} {[%emt 00:00:36]} Nd4 {[%clk 00:17:44]} {[%emt 00:01:28]}
11. b4 {[%clk 00:16:44]} {[%emt 00:00:22]} b6 {[%clk 00:17:12]} {[%emt
00:00:37]} 12. f4 {[%clk 00:15:23]} {[%emt 00:01:26]} Bg4 {[%clk 00:14:52]}
{[%emt 00:02:25]} 13. h3 {[%clk 00:14:46]} {[%emt 00:00:42]} exf4 {[%clk
00:14:43]} {[%emt 00:00:13]} 14. Bxf4 {[%clk 00:12:46]} {[%emt 00:02:05]} Be6
{[%clk 00:13:15]} {[%emt 00:01:34]} 15. Qd2 {[%clk 00:10:42]} {[%emt 00:02:08]}
Qd7 {[%clk 00:08:28]} {[%emt 00:04:52]} 16. Kh2 {[%clk 00:10:44]} {[%emt
00:00:03]} Rae8 {[%clk 00:08:26]} {[%emt 00:00:08]} 17. Rf2 {[%clk 00:09:44]}
{[%emt 00:01:04]} f5 {[%clk 00:08:10]} {[%emt 00:00:21]} 18. Rbf1 {[%clk
00:09:15]} {[%emt 00:00:34]} cxb4 {[%clk 00:07:52]} {[%emt 00:00:23]} 19. Nd5
{[%clk 00:08:59]} {[%emt 00:00:22]} Nxe2 {[%clk 00:06:41]} {[%emt 00:01:17]} 20.
Rxe2 {[%clk 00:07:36]} {[%emt 00:01:27]} fxe4 {[%clk 00:05:46]} {[%emt
00:01:00]} 21. Nxe7+ {[%clk 00:05:43]} {[%emt 00:01:58]} Rxe7 {[%clk 00:05:33]}
{[%emt 00:00:17]} 22. Qxb4 {[%clk 00:03:26]} {[%emt 00:02:23]} exd3 {[%clk
00:04:51]} {[%emt 00:00:47]} 23. Rd2 {[%clk 00:03:29]} {[%emt 00:00:02]} Ref7
{[%clk 00:02:14]} {[%emt 00:02:42]} 24. Re1 {[%clk 00:01:48]} {[%emt 00:01:46]}
Be5 {[%clk 00:01:14]} {[%emt 00:01:06]} 25. Bh6 {[%clk 00:01:24]} {[%emt
00:00:28]} Rc8 {[%clk 00:01:06]} {[%emt 00:00:13]} 26. Rxd3 {[%clk 00:00:32]}
{[%emt 00:00:56]} Rxc4 {[%clk 00:01:10]} 27. Qa3 {[%clk 00:00:34]} {[%emt
00:00:04]} Qc7 {[%clk 00:00:42]} {[%emt 00:00:33]} 28. Ree3 {[%clk 00:00:09]}
{[%emt 00:00:30]} Rc2 {[%clk 00:00:39]} {[%emt 00:00:08]} 29. Kh1 {[%clk
00:00:08]} {[%emt 00:00:06]} Rxg2 {[%clk 00:00:29]} {[%emt 00:00:15]} 30. Kxg2
{[%clk 00:00:12]} {[%emt 00:00:01]} Qc2+ {[%clk 00:00:32]} 31. Kg1 {[%clk
00:00:09]} {[%emt 00:00:09]} Qf2+ {[%clk 00:00:36]} 32. Kh1 {[%clk 00:00:13]}
Qf1+ {[%clk 00:00:40]} 33. Kh2 {[%clk 00:00:17]} Rf2# {[%clk 00:00:45]} 0-1



[ePGN "0.1;DGT LiveChess/2.2.6"]